[Event "*** Titled Tuesday Blitz"]
[Site "Chess.com"]
[Date "2020.11.03"]
[Round "1"]
[White "ElusiveCat"]
[Black "PotapovaM"]
[Result "1/2-1/2"]
[WhiteElo "2304"]
[BlackElo "2599"]
[TimeControl "180+1"]
[EndTime "10:11:29 PST"]
[Termination "Game drawn by 50-move rule"]

1. d4 {[%clk 0:03:00.2]} 1... Nf6 {[%clk 0:02:58]} 2. c4 {[%clk 0:02:59.6]} 2...
e6 {[%clk 0:02:58.6]} 3. Nc3 {[%clk 0:02:58.4]} 3... Bb4 {[%clk 0:02:59.1]} 4.
f3 {[%clk 0:02:58.7]} 4... d5 {[%clk 0:02:49.5]} 5. a3 {[%clk 0:02:57.2]} 5...
Be7 {[%clk 0:02:46.6]} 6. e4 {[%clk 0:02:56.2]} 6... dxe4 {[%clk 0:02:47.2]} 7.
fxe4 {[%clk 0:02:57.1]} 7... c5 {[%clk 0:02:47.8]} 8. d5 {[%clk 0:02:57.2]} 8...
exd5 {[%clk 0:02:48]} 9. exd5 {[%clk 0:02:58.1]} 9... O-O {[%clk 0:02:48.2]} 10.
Nf3 {[%clk 0:02:57.8]} 10... Re8 {[%clk 0:02:44.1]} 11. Be2 {[%clk 0:02:57.5]}
11... Bd6 {[%clk 0:02:34.7]} 12. O-O {[%clk 0:02:56.7]} 12... a6 {[%clk
0:02:34.4]} 13. Bg5 {[%clk 0:02:55.4]} 13... Nbd7 {[%clk 0:02:33.6]} 14. Bd3
{[%clk 0:02:49.7]} 14... h6 {[%clk 0:02:33.5]} 15. Bh4 {[%clk 0:02:49.3]} 15...
Qc7 {[%clk 0:02:32.9]} 16. h3 {[%clk 0:02:34.2]} 16... Rb8 {[%clk 0:02:25]} 17.
a4 {[%clk 0:02:23.8]} 17... Bf4 {[%clk 0:02:22.3]} 18. Nd2 {[%clk 0:02:02.3]}
18... Be3+ {[%clk 0:02:10.2]} 19. Kh1 {[%clk 0:02:00.9]} 19... Bg5 {[%clk
0:01:40.8]} 20. Bxg5 {[%clk 0:01:57.9]} 20... hxg5 {[%clk 0:01:41.7]} 21. Nde4
{[%clk 0:01:55.1]} 21... Nxe4 {[%clk 0:01:21.4]} 22. Nxe4 {[%clk 0:01:52.7]}
22... f6 {[%clk 0:01:21.1]} 23. Qh5 {[%clk 0:01:47.9]} 23... Re5 {[%clk
0:00:58.7]} 24. Ng3 {[%clk 0:01:34]} 24... Nf8 {[%clk 0:00:54.3]} 25. Bf5 {[%clk
0:01:17.9]} 25... Qf7 {[%clk 0:00:48.9]} 26. Qg4 {[%clk 0:01:14.2]} 26... Bd7
{[%clk 0:00:40.7]} 27. Bxd7 {[%clk 0:01:07.1]} 27... Qxd7 {[%clk 0:00:41.6]} 28.
Qh5 {[%clk 0:00:58.5]} 28... Qf7 {[%clk 0:00:41.3]} 29. Qf3 {[%clk 0:00:57.7]}
29... Ng6 {[%clk 0:00:35.6]} 30. Nf5 {[%clk 0:00:57.1]} 30... Nf4 {[%clk
0:00:34.7]} 31. g3 {[%clk 0:00:51.1]} 31... Rxf5 {[%clk 0:00:32.8]} 32. gxf4
{[%clk 0:00:51]} 32... Rxf4 {[%clk 0:00:33.3]} 33. Qg3 {[%clk 0:00:50.6]} 33...
Rxf1+ {[%clk 0:00:30.2]} 34. Rxf1 {[%clk 0:00:51.5]} 34... Re8 {[%clk
0:00:29.9]} 35. Qd6 {[%clk 0:00:47.2]} 35... Qe7 {[%clk 0:00:29.2]} 36. Qxe7
{[%clk 0:00:41.4]} 36... Rxe7 {[%clk 0:00:30.1]} 37. Rf3 {[%clk 0:00:41.7]}
37... Kf7 {[%clk 0:00:28.5]} 38. Rb3 {[%clk 0:00:40.3]} 38... Ke8 {[%clk
0:00:20.8]} 39. Kg2 {[%clk 0:00:39.6]} 39... Kd8 {[%clk 0:00:20.5]} 40. Kf2
{[%clk 0:00:39.4]} 40... Kc8 {[%clk 0:00:21]} 41. Rb6 {[%clk 0:00:38.3]} 41...
Re4 {[%clk 0:00:18]} 42. b3 {[%clk 0:00:37.8]} 42... g4 {[%clk 0:00:15.8]} 43.
hxg4 {[%clk 0:00:36.2]} 43... Rxg4 {[%clk 0:00:16.7]} 44. a5 {[%clk 0:00:34.8]}
44... Re4 {[%clk 0:00:15.5]} 45. Kf3 {[%clk 0:00:33.8]} 45... Re5 {[%clk
0:00:15.3]} 46. Kf2 {[%clk 0:00:32.4]} 46... Re8 {[%clk 0:00:14.5]} 47. b4
{[%clk 0:00:32.2]} 47... cxb4 {[%clk 0:00:14.3]} 48. Rxb4 {[%clk 0:00:33.1]}
48... g5 {[%clk 0:00:14.6]} 49. Rb6 {[%clk 0:00:32.8]} 49... Rf8 {[%clk
0:00:14.9]} 50. Re6 {[%clk 0:00:28.4]} 50... Kd7 {[%clk 0:00:13.7]} 51. Rb6
{[%clk 0:00:28.1]} 51... Kc7 {[%clk 0:00:14.2]} 52. Re6 {[%clk 0:00:27.8]} 52...
f5 {[%clk 0:00:14.5]} 53. Rg6 {[%clk 0:00:25.8]} 53... g4 {[%clk 0:00:14.4]} 54.
c5 {[%clk 0:00:25.3]} 54... Rf7 {[%clk 0:00:12.7]} 55. Rg8 {[%clk 0:00:20.2]}
55... Rd7 {[%clk 0:00:11]} 56. d6+ {[%clk 0:00:18.6]} 56... Kc6 {[%clk
0:00:11.3]} 57. Rc8+ {[%clk 0:00:18.4]} 57... Kb5 {[%clk 0:00:11.5]} 58. Rc7
{[%clk 0:00:18.6]} 58... Rd8 {[%clk 0:00:10.9]} 59. d7 {[%clk 0:00:18.2]} 59...
Kxa5 {[%clk 0:00:11.3]} 60. Kg3 {[%clk 0:00:18.3]} 60... Kb5 {[%clk 0:00:10]}
61. Kf4 {[%clk 0:00:18.6]} 61... a5 {[%clk 0:00:09.5]} 62. Rxb7+ {[%clk
0:00:15.9]} 62... Kxc5 {[%clk 0:00:09.2]} 63. Kxf5 {[%clk 0:00:12.7]} 63... g3
{[%clk 0:00:08.6]} 64. Rb3 {[%clk 0:00:11.2]} 64... g2 {[%clk 0:00:08]} 65. Rg3
{[%clk 0:00:11.3]} 65... Rxd7 {[%clk 0:00:07.9]} 66. Rxg2 {[%clk 0:00:11.5]}
66... Re7 {[%clk 0:00:08.1]} 67. Rb2 {[%clk 0:00:10]} 67... a4 {[%clk 0:00:08]}
68. Rb8 {[%clk 0:00:09.4]} 68... Re3 {[%clk 0:00:07.6]} 69. Rc8+ {[%clk
0:00:09]} 69... Kb4 {[%clk 0:00:07.6]} 70. Kf4 {[%clk 0:00:08.9]} 70... Re2
{[%clk 0:00:07.6]} 71. Kf3 {[%clk 0:00:08.6]} 71... Re7 {[%clk 0:00:07.7]} 72.
Rb8+ {[%clk 0:00:08.7]} 72... Ka3 {[%clk 0:00:07.6]} 73. Kf2 {[%clk 0:00:08.2]}
73... Re5 {[%clk 0:00:07.6]} 74. Kf3 {[%clk 0:00:08.5]} 74... Ka2 {[%clk
0:00:07.6]} 75. Kf2 {[%clk 0:00:08.7]} 75... a3 {[%clk 0:00:07.3]} 76. Kf3
{[%clk 0:00:08.9]} 76... Re6 {[%clk 0:00:07.2]} 77. Kf2 {[%clk 0:00:09.1]} 77...
Ka1 {[%clk 0:00:07.1]} 78. Kf3 {[%clk 0:00:08.1]} 78... a2 {[%clk 0:00:07.4]}
79. Kf2 {[%clk 0:00:08.5]} 79... Re5 {[%clk 0:00:07.6]} 80. Kf1 {[%clk
0:00:08.4]} 80... Re4 {[%clk 0:00:07.3]} 81. Kf2 {[%clk 0:00:08.6]} 81... Re7
{[%clk 0:00:06.3]} 82. Kf1 {[%clk 0:00:08.8]} 82... Rc7 {[%clk 0:00:06.5]} 83.
Ke2 {[%clk 0:00:08.9]} 83... Rc2+ {[%clk 0:00:07.1]} 84. Kd1 {[%clk 0:00:08.6]}
84... Rb2 {[%clk 0:00:07.3]} 85. Rc8 {[%clk 0:00:07]} 85... Rb1+ {[%clk
0:00:05.9]} 86. Kc2 {[%clk 0:00:06.3]} 86... Rb2+ {[%clk 0:00:06.4]} 87. Kc1
{[%clk 0:00:06.7]} 87... Rb1+ {[%clk 0:00:06.2]} 88. Kc2 {[%clk 0:00:07]} 88...
Rh1 {[%clk 0:00:06.3]} 89. Rb8 {[%clk 0:00:06.3]} 89... Rh2+ {[%clk 0:00:06.3]}
90. Kc1 {[%clk 0:00:06.4]} 90... Rh4 {[%clk 0:00:06.5]} 91. Rc8 {[%clk
0:00:05.6]} 91... Rg4 {[%clk 0:00:06.6]} 92. Kc2 {[%clk 0:00:05.5]} 92... Rf4
{[%clk 0:00:07]} 93. Kc1 {[%clk 0:00:05.7]} 93... Re4 {[%clk 0:00:07.2]} 94. Kc2
{[%clk 0:00:05.7]} 94... Re2+ {[%clk 0:00:07.6]} 95. Kc1 {[%clk 0:00:05.9]}
95... Rb2 {[%clk 0:00:07.8]} 96. Rc7 {[%clk 0:00:05.5]} 96... Rb5 {[%clk
0:00:07.6]} 97. Rc8 {[%clk 0:00:05.2]} 97... Rb6 {[%clk 0:00:07.5]} 98. Rc7
{[%clk 0:00:05]} 98... Rb8 {[%clk 0:00:07.9]} 99. Rc6 {[%clk 0:00:04.8]} 99...
Rb5 {[%clk 0:00:07.6]} 100. Rc7 {[%clk 0:00:04.9]} 100... Rb4 {[%clk 0:00:07.8]}
101. Rc6 {[%clk 0:00:05]} 101... Rh4 {[%clk 0:00:07.5]} 102. Rc7 {[%clk
0:00:05]} 102... Rh8 {[%clk 0:00:07.6]} 103. Rc6 {[%clk 0:00:04.9]} 103... Rh7
{[%clk 0:00:08]} 104. Rc5 {[%clk 0:00:04.5]} 104... Rh4 {[%clk 0:00:07.8]} 105.
Rc6 {[%clk 0:00:04.4]} 105... Rh7 {[%clk 0:00:07.9]} 106. Rc5 {[%clk 0:00:04.5]}
106... Rh3 {[%clk 0:00:08.4]} 107. Rc6 {[%clk 0:00:04.6]} 107... Rh2 {[%clk
0:00:08.5]} 108. Rc7 {[%clk 0:00:03.9]} 108... Rh1+ {[%clk 0:00:08.7]} 109. Kc2
{[%clk 0:00:03.7]} 109... Rh6 {[%clk 0:00:09.6]} 110. Kc1 {[%clk 0:00:03.5]}
110... Re6 {[%clk 0:00:09.2]} 111. Kc2 {[%clk 0:00:03.7]} 111... Ra6 {[%clk
0:00:08.7]} 112. Kc1 {[%clk 0:00:03.5]} 112... Ra8 {[%clk 0:00:08.1]} 113. Kc2
{[%clk 0:00:03.7]} 113... Rb8 {[%clk 0:00:06.8]} 114. Kc1 {[%clk 0:00:03.5]}
114... Rd8 {[%clk 0:00:06.7]} 115. Kc2 {[%clk 0:00:03.6]} 115... Rd6 {[%clk
0:00:06.7]} 116. Kc1 {[%clk 0:00:03.6]} 116... Rd4 {[%clk 0:00:06.8]} 117. Kc2
{[%clk 0:00:03.6]} 117... Rf4 {[%clk 0:00:07.3]} 118. Kc1 {[%clk 0:00:03.8]}
118... Rf2 {[%clk 0:00:06.9]} 119. Rc8 {[%clk 0:00:03.4]} 119... Rf1+ {[%clk
0:00:07]} 120. Kc2 {[%clk 0:00:03]} 120... Rf2+ {[%clk 0:00:07.5]} 121. Kc1
{[%clk 0:00:03.3]} 121... Rf1+ {[%clk 0:00:07.5]} 122. Kc2 {[%clk 0:00:03.4]}
122... Rf3 {[%clk 0:00:07.5]} 123. Rc7 {[%clk 0:00:02.9]} 123... Rf8 {[%clk
0:00:06.8]} 124. Kc1 {[%clk 0:00:02.3]} 124... Rf6 {[%clk 0:00:06.6]} 125. Kc2
{[%clk 0:00:02.3]} 125... Rf5 {[%clk 0:00:06.9]} 126. Kc1 {[%clk 0:00:02.5]}
126... Rg5 {[%clk 0:00:07.1]} 127. Kc2 {[%clk 0:00:02.8]} 127... Rg2+ {[%clk
0:00:07.6]} 128. Kc1 {[%clk 0:00:03.1]} 128... Rg4 {[%clk 0:00:08.5]} 1/2-1/2

[Event "*** Titled Tuesday Blitz"]
[Site "Chess.com"]
[Date "2020.11.03"]
[Round "2"]
[White "SHIVACalypso"]
[Black "Sanyura"]
[Result "1-0"]
[WhiteElo "2323"]
[BlackElo "2503"]
[TimeControl "180+1"]
[EndTime "10:13:55 PST"]
[Termination "SHIVACalypso won by resignation"]

1. Nf3 {[%clk 0:03:00.9]} 1... Nf6 {[%clk 0:02:45.6]} 2. c4 {[%clk 0:03:01.8]}
2... g6 {[%clk 0:02:45.9]} 3. g3 {[%clk 0:03:02.5]} 3... Bg7 {[%clk 0:02:46.5]}
4. Bg2 {[%clk 0:03:03.4]} 4... d6 {[%clk 0:02:47.4]} 5. O-O {[%clk 0:03:03.8]}
5... O-O {[%clk 0:02:48.3]} 6. Nc3 {[%clk 0:03:03.5]} 6... Nbd7 {[%clk
0:02:48.7]} 7. d3 {[%clk 0:03:04.4]} 7... e5 {[%clk 0:02:48.7]} 8. Rb1 {[%clk
0:03:05.3]} 8... a5 {[%clk 0:02:47.9]} 9. a3 {[%clk 0:03:05.5]} 9... Nc5 {[%clk
0:02:42.4]} 10. b4 {[%clk 0:03:03.8]} 10... axb4 {[%clk 0:02:43.3]} 11. axb4
{[%clk 0:03:04.2]} 11... e4 {[%clk 0:02:42.4]} 12. bxc5 {[%clk 0:02:50.2]} 12...
exf3 {[%clk 0:02:40.9]} 13. Bxf3 {[%clk 0:02:50]} 13... dxc5 {[%clk 0:02:39.9]}
14. Bxb7 {[%clk 0:02:50]} 14... Bxb7 {[%clk 0:02:40]} 15. Rxb7 {[%clk
0:02:49.9]} 15... Qc8 {[%clk 0:02:40.3]} 16. Rb1 {[%clk 0:02:48.9]} 16... Qh3
{[%clk 0:02:39.8]} 17. f3 {[%clk 0:02:29.5]} 17... Nh5 {[%clk 0:02:37.3]} 18.
Ne4 {[%clk 0:02:25]} 18... h6 {[%clk 0:02:36.6]} 19. Bb2 {[%clk 0:02:14.9]}
19... f5 {[%clk 0:02:33.1]} 20. Nf2 {[%clk 0:02:14.4]} 1-0

[Event "*** Titled Tuesday Blitz"]
[Site "Chess.com"]
[Date "2020.11.03"]
[Round "2"]
[White "VMikhalevski"]
[Black "tk22h"]
[Result "1-0"]
[WhiteElo "2736"]
[BlackElo "2380"]
[TimeControl "180+1"]
[EndTime "10:14:25 PST"]
[Termination "VMikhalevski won by resignation"]

1. Nf3 {[%clk 0:03:00.9]} 1... Nf6 {[%clk 0:02:59.3]} 2. g3 {[%clk 0:03:01.4]}
2... d5 {[%clk 0:02:58.7]} 3. Bg2 {[%clk 0:03:01.9]} 3... g6 {[%clk 0:02:59]} 4.
O-O {[%clk 0:03:01.7]} 4... Bg7 {[%clk 0:02:59.2]} 5. b3 {[%clk 0:03:01.5]} 5...
O-O {[%clk 0:02:58.9]} 6. Bb2 {[%clk 0:03:01.6]} 6... c5 {[%clk 0:02:59.6]} 7.
c4 {[%clk 0:02:58.6]} 7... dxc4 {[%clk 0:02:59.8]} 8. bxc4 {[%clk 0:02:58]} 8...
Nc6 {[%clk 0:03:00.3]} 9. Nc3 {[%clk 0:02:57.1]} 9... Rb8 {[%clk 0:02:54]} 10.
e3 {[%clk 0:02:51.6]} 10... b6 {[%clk 0:02:53.9]} 11. Qe2 {[%clk 0:02:51]} 11...
Bb7 {[%clk 0:02:52.8]} 12. Rfd1 {[%clk 0:02:49.3]} 12... e6 {[%clk 0:02:53]} 13.
d4 {[%clk 0:02:47.6]} 13... cxd4 {[%clk 0:02:52.7]} 14. exd4 {[%clk 0:02:47.8]}
14... Qe7 {[%clk 0:02:50.8]} 15. a4 {[%clk 0:02:42.8]} 15... Rfd8 {[%clk
0:02:48.6]} 16. Rac1 {[%clk 0:02:38.2]} 16... Rbc8 {[%clk 0:02:47.2]} 17. Nb5
{[%clk 0:02:36.7]} 17... a6 {[%clk 0:02:44.3]} 18. Ba3 {[%clk 0:02:36.7]} 18...
Qd7 {[%clk 0:02:38.1]} 19. Ne5 {[%clk 0:02:27.5]} 19... Nxe5 {[%clk 0:02:36.9]}
20. dxe5 {[%clk 0:02:27]} 20... Nd5 {[%clk 0:02:22.6]} 21. Nd6 {[%clk
0:02:18.1]} 21... Qxa4 {[%clk 0:02:22.4]} 22. Nxb7 {[%clk 0:02:13.7]} 22... Rd7
{[%clk 0:02:17.8]} 23. cxd5 {[%clk 0:02:10.2]} 23... Rxc1 {[%clk 0:02:16.2]} 24.
Rxc1 {[%clk 0:02:09.9]} 1-0

[Event "*** Titled Tuesday Blitz"]
[Site "Chess.com"]
[Date "2020.11.03"]
[Round "2"]
[White "Shoytan"]
[Black "jefferyx"]
[Result "0-1"]
[WhiteElo "2597"]
[BlackElo "2917"]
[TimeControl "180+1"]
[EndTime "10:14:32 PST"]
[Termination "jefferyx won by resignation"]

1. e4 {[%clk 0:03:00.9]} 1... c5 {[%clk 0:02:54.1]} 2. Nf3 {[%clk 0:03:00.7]}
2... Nc6 {[%clk 0:02:53.6]} 3. d4 {[%clk 0:03:00.6]} 3... cxd4 {[%clk
0:02:54.5]} 4. Nxd4 {[%clk 0:03:01.5]} 4... e6 {[%clk 0:02:55.3]} 5. Nc3 {[%clk
0:03:00.9]} 5... a6 {[%clk 0:02:55.8]} 6. g3 {[%clk 0:03:00.1]} 6... Qc7 {[%clk
0:02:54.1]} 7. Bg2 {[%clk 0:02:59.9]} 7... Bc5 {[%clk 0:02:54.3]} 8. Nb3 {[%clk
0:02:51.2]} 8... Ba7 {[%clk 0:02:53.4]} 9. Bf4 {[%clk 0:02:44.5]} 9... Ne5
{[%clk 0:02:53.4]} 10. O-O {[%clk 0:02:25.4]} 10... Nf6 {[%clk 0:02:53.1]} 11.
Kh1 {[%clk 0:02:23.5]} 11... h5 {[%clk 0:02:51.2]} 12. Bxe5 {[%clk 0:02:11.6]}
12... Qxe5 {[%clk 0:02:52.1]} 13. f4 {[%clk 0:02:11.8]} 13... Qc7 {[%clk
0:02:52.8]} 14. h3 {[%clk 0:02:03.4]} 14... d6 {[%clk 0:02:52.5]} 15. Qe2 {[%clk
0:01:57.7]} 15... Ng4 {[%clk 0:02:42.4]} 16. Nd1 {[%clk 0:01:29.7]} 16... Bd7
{[%clk 0:02:41.6]} 17. Bf3 {[%clk 0:01:29.1]} 17... Bb5 {[%clk 0:02:40.9]} 18.
Qe1 {[%clk 0:01:25.2]} 18... Bxf1 {[%clk 0:02:41.7]} 19. Qxf1 {[%clk 0:01:26.1]}
19... Qxc2 {[%clk 0:02:41.8]} 0-1

[Event "*** Titled Tuesday Blitz"]
[Site "Chess.com"]
[Date "2020.11.03"]
[Round "2"]
[White "talyamania"]
[Black "Nachsueb"]
[Result "1-0"]
[WhiteElo "2377"]
[BlackElo "2028"]
[TimeControl "180+1"]
[EndTime "10:14:37 PST"]
[Termination "talyamania won by resignation"]

1. e4 {[%clk 0:03:00.9]} 1... e6 {[%clk 0:03:00.1]} 2. d4 {[%clk 0:02:59.8]}
2... d5 {[%clk 0:03:00.2]} 3. Nd2 {[%clk 0:02:59.9]} 3... Nf6 {[%clk 0:02:56.1]}
4. e5 {[%clk 0:02:58.4]} 4... Nfd7 {[%clk 0:02:56.3]} 5. Bd3 {[%clk 0:02:58.3]}
5... c5 {[%clk 0:02:56.4]} 6. c3 {[%clk 0:02:58.1]} 6... Nc6 {[%clk 0:02:54.2]}
7. Ne2 {[%clk 0:02:54.2]} 7... cxd4 {[%clk 0:02:52.8]} 8. cxd4 {[%clk
0:02:54.5]} 8... f6 {[%clk 0:02:44.3]} 9. exf6 {[%clk 0:02:55.4]} 9... Qxf6
{[%clk 0:02:42.8]} 10. Nf3 {[%clk 0:02:55.6]} 10... Bd6 {[%clk 0:02:42.5]} 11.
Bg5 {[%clk 0:02:53.9]} 11... Qf7 {[%clk 0:02:42]} 12. Bh4 {[%clk 0:02:53.5]}
12... h6 {[%clk 0:02:22.5]} 13. Bg3 {[%clk 0:02:52.4]} 13... O-O {[%clk
0:02:17.3]} 14. Bxd6 {[%clk 0:02:51.1]} 14... Re8 {[%clk 0:02:09]} 15. O-O
{[%clk 0:02:48.1]} 15... e5 {[%clk 0:02:03.7]} 16. Nxe5 {[%clk 0:02:45.9]} 16...
Ndxe5 {[%clk 0:02:04.5]} 17. dxe5 {[%clk 0:02:44.9]} 17... Nxe5 {[%clk
0:02:00.4]} 18. Bxe5 {[%clk 0:02:43.9]} 18... Rxe5 {[%clk 0:02:01.1]} 19. Nd4
{[%clk 0:02:40.6]} 19... Rg5 {[%clk 0:01:54.9]} 20. Nf3 {[%clk 0:02:23.3]} 20...
Bg4 {[%clk 0:01:52]} 21. Nxg5 {[%clk 0:02:21.2]} 1-0

[Event "*** Titled Tuesday Blitz"]
[Site "Chess.com"]
[Date "2020.11.03"]
[Round "2"]
[White "barbara25"]
[Black "xamax2000"]
[Result "0-1"]
[WhiteElo "2340"]
[BlackElo "2673"]
[TimeControl "180+1"]
[EndTime "10:14:45 PST"]
[Termination "xamax2000 won by resignation"]

1. e4 {[%clk 0:03:00]} 1... c6 {[%clk 0:02:56.1]} 2. d4 {[%clk 0:02:59.2]} 2...
d5 {[%clk 0:02:57]} 3. f3 {[%clk 0:02:58.3]} 3... dxe4 {[%clk 0:02:56.6]} 4.
fxe4 {[%clk 0:02:58.3]} 4... e5 {[%clk 0:02:57.5]} 5. Nf3 {[%clk 0:02:55.1]}
5... Bg4 {[%clk 0:02:57.9]} 6. Bc4 {[%clk 0:02:53.2]} 6... Nd7 {[%clk
0:02:58.4]} 7. O-O {[%clk 0:02:51.1]} 7... Ngf6 {[%clk 0:02:58.8]} 8. dxe5
{[%clk 0:02:49.3]} 8... Bxf3 {[%clk 0:02:45.2]} 9. Qxf3 {[%clk 0:02:25.6]} 9...
Nxe5 {[%clk 0:02:44.7]} 10. Qc3 {[%clk 0:02:24]} 10... Bc5+ {[%clk 0:02:38.7]}
11. Kh1 {[%clk 0:02:23.8]} 11... Bd4 {[%clk 0:02:20.7]} 12. Qb3 {[%clk
0:02:20.1]} 12... O-O {[%clk 0:02:14.5]} 13. Bg5 {[%clk 0:02:18.3]} 13... Nxc4
{[%clk 0:02:10.7]} 14. Qxc4 {[%clk 0:02:17.2]} 14... Bxb2 {[%clk 0:02:11.3]} 15.
Nc3 {[%clk 0:02:13.5]} 15... Bxa1 {[%clk 0:02:10.5]} 16. Bxf6 {[%clk 0:02:13.8]}
16... gxf6 {[%clk 0:02:06.2]} 17. Rxa1 {[%clk 0:02:13.7]} 17... Qd6 {[%clk
0:02:04.3]} 18. Ne2 {[%clk 0:02:13.4]} 18... Rad8 {[%clk 0:02:02.4]} 19. h3
{[%clk 0:02:13.6]} 19... Qe6 {[%clk 0:02:00.7]} 20. Qb4 {[%clk 0:02:10.8]} 20...
a5 {[%clk 0:01:59.2]} 21. Qxb7 {[%clk 0:02:03.3]} 21... Qxe4 {[%clk 0:01:59]}
22. Ng3 {[%clk 0:02:03.2]} 22... Qe5 {[%clk 0:01:59]} 0-1

[Event "*** Titled Tuesday Blitz"]
[Site "Chess.com"]
[Date "2020.11.03"]
[Round "2"]
[White "dpopadic"]
[Black "Fiona"]
[Result "1-0"]
[WhiteElo "2408"]
[BlackElo "2161"]
[TimeControl "180+1"]
[EndTime "10:15:20 PST"]
[Termination "dpopadic won by resignation"]

1. e4 {[%clk 0:03:00.9]} 1... e5 {[%clk 0:02:59.2]} 2. Nf3 {[%clk 0:02:59.9]}
2... Nc6 {[%clk 0:02:59.2]} 3. Bb5 {[%clk 0:02:58.9]} 3... f5 {[%clk 0:02:59.1]}
4. Nc3 {[%clk 0:02:57.8]} 4... Nf6 {[%clk 0:02:54.2]} 5. Qe2 {[%clk 0:02:53.6]}
5... Bc5 {[%clk 0:02:30.8]} 6. Bxc6 {[%clk 0:02:40.5]} 6... dxc6 {[%clk
0:02:24.7]} 7. Nxe5 {[%clk 0:02:39.5]} 7... Qe7 {[%clk 0:02:09.6]} 8. Nd3 {[%clk
0:02:32.2]} 8... fxe4 {[%clk 0:01:54]} 9. Nxc5 {[%clk 0:02:30.1]} 9... Qxc5
{[%clk 0:01:51.3]} 10. Nxe4 {[%clk 0:02:28.7]} 10... Qe5 {[%clk 0:01:44.2]} 11.
Nxf6+ {[%clk 0:02:27.8]} 11... gxf6 {[%clk 0:01:45.1]} 12. Qxe5+ {[%clk
0:02:22.3]} 12... fxe5 {[%clk 0:01:45.1]} 13. O-O {[%clk 0:02:21.5]} 13... Bf5
{[%clk 0:01:45.1]} 14. d3 {[%clk 0:02:20.4]} 14... Kf7 {[%clk 0:01:45.3]} 15.
Re1 {[%clk 0:02:20.5]} 15... Kf6 {[%clk 0:01:43.7]} 16. Bd2 {[%clk 0:02:20.1]}
16... Rae8 {[%clk 0:01:33.1]} 17. Bc3 {[%clk 0:02:20.2]} 17... Rhg8 {[%clk
0:01:30.3]} 18. f4 {[%clk 0:02:08.1]} 1-0

[Event "*** Titled Tuesday Blitz"]
[Site "Chess.com"]
[Date "2020.11.03"]
[Round "2"]
[White "Harry_Rakkel"]
[Black "MoreChessJulia"]
[Result "1-0"]
[WhiteElo "2639"]
[BlackElo "2071"]
[TimeControl "180+1"]
[EndTime "10:15:32 PST"]
[Termination "Harry_Rakkel won by resignation"]

1. d4 {[%clk 0:03:00.9]} 1... g6 {[%clk 0:02:59.6]} 2. c4 {[%clk 0:02:59.5]}
2... Bg7 {[%clk 0:02:59.4]} 3. e4 {[%clk 0:02:58.8]} 3... c5 {[%clk 0:02:54.7]}
4. d5 {[%clk 0:02:58.4]} 4... d6 {[%clk 0:02:54.1]} 5. Bd3 {[%clk 0:02:55.9]}
5... e6 {[%clk 0:02:53.7]} 6. Nc3 {[%clk 0:02:54.1]} 6... exd5 {[%clk
0:02:53.7]} 7. exd5 {[%clk 0:02:53.3]} 7... Nf6 {[%clk 0:02:52.4]} 8. h3 {[%clk
0:02:45.3]} 8... O-O {[%clk 0:02:50.4]} 9. Nf3 {[%clk 0:02:44.6]} 9... Re8+
{[%clk 0:02:48.7]} 10. Be3 {[%clk 0:02:44]} 10... a6 {[%clk 0:02:46.9]} 11. O-O
{[%clk 0:02:41.5]} 11... Nbd7 {[%clk 0:02:42.6]} 12. Qd2 {[%clk 0:02:38.3]}
12... Ne5 {[%clk 0:02:40.4]} 13. Nxe5 {[%clk 0:02:37.1]} 13... Rxe5 {[%clk
0:02:39.1]} 14. Bf4 {[%clk 0:02:32.7]} 14... Re8 {[%clk 0:02:38.5]} 15. a4
{[%clk 0:02:32]} 15... b6 {[%clk 0:02:37.2]} 16. Rfe1 {[%clk 0:02:29.2]} 16...
Nh5 {[%clk 0:02:25.9]} 17. Rxe8+ {[%clk 0:02:21.8]} 17... Qxe8 {[%clk
0:02:25.8]} 18. Bxd6 {[%clk 0:02:20.4]} 18... Bd4 {[%clk 0:02:25.1]} 19. Re1
{[%clk 0:02:12]} 19... Qd8 {[%clk 0:02:22.4]} 20. Be7 {[%clk 0:02:03.4]} 20...
Qd7 {[%clk 0:02:15.6]} 21. d6 {[%clk 0:01:52.9]} 21... Bb7 {[%clk 0:02:09.6]}
22. Be4 {[%clk 0:01:47.3]} 22... Bxe4 {[%clk 0:02:01.1]} 23. Rxe4 {[%clk
0:01:48.2]} 23... Ng7 {[%clk 0:02:01.5]} 24. Nd5 {[%clk 0:01:42.5]} 24... Nf5
{[%clk 0:01:53.5]} 25. Rxd4 {[%clk 0:01:39.5]} 25... cxd4 {[%clk 0:01:47.5]} 26.
Nf6+ {[%clk 0:01:39]} 1-0

[Event "*** Titled Tuesday Blitz"]
[Site "Chess.com"]
[Date "2020.11.03"]
[Round "2"]
[White "AndrewMaco"]
[Black "manipun1"]
[Result "1-0"]
[WhiteElo "2656"]
[BlackElo "2235"]
[TimeControl "180+1"]
[EndTime "10:15:46 PST"]
[Termination "AndrewMaco won by resignation"]

1. e4 {[%clk 0:02:49.6]} 1... d6 {[%clk 0:02:59.2]} 2. d4 {[%clk 0:02:49]} 2...
Nf6 {[%clk 0:02:59.5]} 3. Bd3 {[%clk 0:02:49]} 3... e5 {[%clk 0:02:59.2]} 4. c3
{[%clk 0:02:48.5]} 4... Nc6 {[%clk 0:02:58.9]} 5. Nf3 {[%clk 0:02:47.6]} 5...
Bg4 {[%clk 0:02:57.9]} 6. d5 {[%clk 0:02:45.7]} 6... Ne7 {[%clk 0:02:57.8]} 7.
h3 {[%clk 0:02:46.3]} 7... Bd7 {[%clk 0:02:57.2]} 8. c4 {[%clk 0:02:46.2]} 8...
Ng6 {[%clk 0:02:56.2]} 9. Nc3 {[%clk 0:02:44.4]} 9... Be7 {[%clk 0:02:55.5]} 10.
O-O {[%clk 0:02:35.9]} 10... O-O {[%clk 0:02:55.5]} 11. Be3 {[%clk 0:02:35.4]}
11... Nh5 {[%clk 0:02:52.1]} 12. Re1 {[%clk 0:02:26.5]} 12... Nhf4 {[%clk
0:02:48.9]} 13. Bf1 {[%clk 0:02:26.8]} 13... h6 {[%clk 0:02:42.3]} 14. Kh2
{[%clk 0:02:23.2]} 14... f5 {[%clk 0:02:37]} 15. exf5 {[%clk 0:02:17.4]} 15...
Bxf5 {[%clk 0:02:12.7]} 16. g3 {[%clk 0:02:13.2]} 16... Nh5 {[%clk 0:01:42.7]}
17. g4 {[%clk 0:02:13]} 17... Nh4 {[%clk 0:01:19.2]} 18. Nxh4 {[%clk 0:02:00.5]}
18... Bxh4 {[%clk 0:01:18.3]} 19. gxf5 {[%clk 0:02:00.9]} 19... Rxf5 {[%clk
0:01:14.9]} 20. Bd3 {[%clk 0:01:58.4]} 20... Qf6 {[%clk 0:01:03.3]} 21. Bxf5
{[%clk 0:01:57.3]} 21... Qxf5 {[%clk 0:01:03.3]} 22. Qg4 {[%clk 0:01:57.9]} 1-0